bitfinex-derivatives/quotes_ETHF0:USTF0_20250504
["timestamp","ask_amount","ask_price","bid_price","bid_amount"]
[1746396770425,1.6479,1826.5,1826.4,1.09484]
[1746396770625,1.36834046,1826.6,1826.4,1.09484]
[1746396770824,3.01624046,1826.6,1826.4,1.09484]
[1746396771530,1.6015,1826.7,1826.6,1.09476]
[1746396771922,2.69622,1826.7,1826.5,1.95899]
[1746396772121,4.34412,1826.7,1826.5,1.95899]
[1746396773029,3.2494,1826.7,1826.6,1.09476]
[1746396773228,1.36818046,1826.9,1826.7,1.0947]
[1746396773422,1.09467,1826.8,1826.6,1.09472]
[1746396773827,1.0947,1826.7,1826.6,1.09472]
[1746396774030,1.0947,1826.7,1826.5,1.95898]
[1746396774831,1.09476,1826.6,1826.5,0.8642]
[1746396775028,2.74516,1826.6,1826.5,0.8642]
[1746396776730,2.74516,1826.6,1826.4,1.09484]
[1746396776926,1.6516,1826.5,1826.4,1.09484]
[1746396777227,1.6516,1826.5,1826.4,1.09488]
[1746396780427,1.6516,1826.5,1826.4,2.71858]
[1746396781034,1.92516046,1826.5,1826.4,1.6237]
[1746396781331,3.01998046,1826.5,1826.4,1.6237]
[1746396781529,3.87518046,1826.5,1826.4,1.6237]
[1746396781833,2.5068,1826.5,1826.4,1.6237]
[1746396782230,0.27356046,1826.9,1826.4,1.6237]
[1746396782422,0.27356046,1826.8,1826.5,8.05662]
[1746396782627,1.08986046,1826.9,1826.6,1.682]
[1746396782821,0.8163,1826.9,1826.7,0.7963]
[1746396783027,3.48136046,1827.0,1826.8,1.682]
[1746396783228,1.36814046,1826.9,1826.8,1.682]
[1746396783528,0.27356046,1826.7,1826.6,5.436]
[1746396783734,1.36825046,1826.8,1826.6,5.436]
[1746396783938,1.0947,1826.7,1826.6,5.436]
[1746396784332,1.36826046,1826.7,1826.6,5.436]
[1746396784833,1.36826046,1826.7,1826.6,1.682]
[1746396785235,1.09488,1826.4,1826.3,3.2078]
[1746396785429,1.09488,1826.4,1826.3,9.4296]
[1746396785630,1.36842046,1826.5,1826.3,9.4296]
[1746396785828,1.09486,1826.5,1826.4,1.6123]
[1746396786030,1.36842046,1826.5,1826.4,1.6123]
[1746396786640,2.93272046,1826.5,1826.4,1.6123]
[1746396786935,2.65916,1826.5,1826.4,1.6123]
[1746396787336,1.09486,1826.5,1826.4,1.6123]
[1746396787629,1.09488,1826.4,1826.3,3.754]
[1746396787832,3.72054046,1826.4,1826.3,3.754]
[1746396788438,1.095,1826.2,1826.1,3.9915]
[1746396788634,1.36856046,1826.2,1826.1,0.7837]
[1746396788828,2.18986046,1826.2,1826.1,0.7837]
[1746396789332,1.09506,1826.1,1826.0,12.64319598]
[1746396789637,3.03692046,1826.1,1826.0,7.28349598]
[1746396790939,1.09518,1825.9,1825.8,6.1434]
[1746396791740,1.09524,1825.8,1825.7,10.49129598]
[1746396792046,3.10230046,1825.8,1825.7,7.28349598]
[1746396792235,7.16660046,1825.8,1825.7,7.28349598]
[1746396793629,3.95880046,1825.8,1825.7,7.28349598]
[1746396794940,1.36892046,1825.6,1825.5,2.0663]
[1746396795248,1.36910046,1825.3,1825.2,1.6447]
[1746396795541,1.0956,1825.2,1825.1,5.3788]
[1746396796740,1.0956,1825.2,1825.1,4.5892]
[1746396797041,1.0956,1825.2,1825.1,6.2339]
[1746396797243,1.0956,1825.2,1825.0,9.16277598]
[1746396797244,1.09566,1825.1,1825.0,5.95497598]
[1746396797444,3.02982046,1825.1,1825.0,5.95497598]
[1746396798248,3.88372046,1825.1,1825.0,4.78507598]
[1746396798446,3.88372046,1825.1,1825.0,3.49761598]
[1746396798741,1.09602,1824.5,1824.4,10.88584541]
[1746396798944,4.57738046,1824.5,1824.4,8.14860541]
[1746396799244,9.57738046,1824.5,1824.4,5.46e-06]
[1746396799640,4.57738046,1824.5,1824.4,5.46e-06]
[1746396800343,5.84919195,1824.5,1824.4,5.46e-06]
[1746396800543,1.36964046,1824.4,1824.3,13.05488348]
[1746396800839,6.78494046,1824.4,1824.3,10.06856348]
[1746396801045,7.20200335,1824.4,1824.3,8.20462348]
[1746396801245,12.20200335,1824.4,1824.3,4.56787348]
[1746396801546,12.20200335,1824.4,1824.3,3.24230348]
[1746396802245,13.03460335,1824.4,1824.3,3.24230348]
[1746396803049,1.09629,1824.1,1823.8,4.8149]
[1746396803251,1.09629,1824.1,1823.9,1.6071]
[1746396803547,1.36979046,1824.2,1823.9,1.6071]
[1746396803748,1.6608,1824.1,1823.9,1.6071]
[1746396803938,2.75707,1824.1,1823.9,1.6071]
[1746396804556,1.6608,1824.1,1823.9,1.6071]
[1746396804743,1.10616046,1824.4,1823.9,6.6071]
[1746396804938,2.75699,1824.3,1824.0,1.0963]
[1746396805241,2.75699,1824.3,1824.1,1.609]
[1746396805747,1.6608,1824.3,1824.1,1.609]
[1746396806647,1.93436046,1824.3,1824.0,3.2078]
[1746396806843,1.09626,1824.1,1824.0,3.2078]
[1746396807036,1.09626,1824.1,1823.8,1.7264]
[1746396807037,1.09638,1823.9,1823.8,1.7264]
[1746396807241,1.09644,1823.8,1823.7,4.9214]
[1746396807537,1.09642,1823.9,1823.7,4.53649]
[1746396807847,1.7299,1823.8,1823.7,3.44]
[1746396808147,1.7299,1823.8,1823.7,4.5365]
[1746396808736,1.7299,1823.8,1823.4,3.2078]
[1746396808737,7.00346046,1823.8,1823.4,3.2078]
[1746396808940,3.2078,1823.6,1823.1,3.2078]
[1746396809140,1.09677,1823.3,1823.1,4.9342]
[1746396809441,2.8267,1823.2,1823.1,4.9342]
[1746396809943,2.8267,1823.2,1823.0,0.21087706]
[1746396809944,1.09686,1823.1,1823.0,0.21087706]
[1746396810245,2.75996,1823.1,1823.0,0.21087706]
[1746396811244,1.6631,1823.1,1823.0,0.21087706]
[1746396811547,2.75996,1823.1,1823.0,0.21087706]
[1746396812347,1.6631,1823.1,1823.0,1.79557706]
[1746396812547,1.37032046,1823.3,1823.0,2.89243706]
[1746396812747,1.09681,1823.2,1823.0,2.89243706]
[1746396812948,3.04384046,1823.3,1823.0,2.89243706]
[1746396813142,1.09681,1823.2,1823.0,2.89243706]
[1746396813446,3.04384046,1823.3,1823.0,2.89244706]
[1746396813635,3.04384046,1823.3,1823.0,1.79557706]
[1746396813841,1.6735,1823.3,1823.1,1.09682]
[1746396814245,1.6735,1823.3,1823.2,2.8014]
[1746396814651,1.37027046,1823.4,1823.2,2.8014]
[1746396814944,1.09664,1823.5,1823.3,1.09671]
[1746396815150,2.77014,1823.5,1823.1,2.13672829]
[1746396815344,1.6735,1823.5,1823.3,1.09672]
[1746396815546,3.04370046,1823.5,1823.3,1.09672]
[1746396815746,1.6735,1823.5,1823.3,1.09672]
[1746396815942,1.94706046,1823.5,1823.2,1.95767]
[1746396816140,3.04371046,1823.5,1823.3,1.09674]
[1746396816642,1.6735,1823.5,1823.3,1.09674]
[1746396816946,1.6735,1823.5,1823.4,1.09668]
[1746396817143,1.6735,1823.5,1823.2,0.8609]
[1746396817352,1.6735,1823.5,1823.4,1.09668]
[1746396817645,1.37013046,1823.6,1823.4,1.09668]
[1746396817848,1.5679,1823.5,1823.4,1.09668]
[1746396818047,0.27356046,1823.4,1823.3,0.8523]
[1746396818241,0.27356046,1823.4,1823.0,0.21087706]
[1746396818242,1.09674,1823.3,1823.0,1.30775706]
[1746396818547,1.09683,1823.2,1823.0,1.30778706]
[1746396818748,1.6616,1823.1,1823.0,1.30778706]
[1746396819250,3.03202046,1823.1,1823.0,0.21087706]
[1746396821444,8.03202046,1823.1,1823.0,0.21087706]
[1746396822159,1.097,1822.9,1822.7,0.21087694]
[1746396822454,1.6366,1822.8,1822.7,0.21087694]
[1746396822654,3.00720046,1822.8,1822.7,0.21087694]
[1746396823449,6.21500046,1822.8,1822.7,0.21087694]
[1746396823651,6.20189899,1822.8,1822.7,0.21087694]
[1746396824148,9.95989899,1822.8,1822.7,0.21087694]
[1746396824556,10.3779763,1822.8,1822.7,0.21087694]
[1746396825051,16.2019763,1822.8,1822.7,0.21087694]
[1746396825352,21.2019763,1822.8,1822.7,0.21087694]
[1746396825651,21.2019763,1822.8,1822.7,6.94e-06]
[1746396826449,0.27356046,1822.0,1821.7,3.2078]
[1746396826657,1.09765,1821.8,1821.5,7.5931]
[1746396826843,0.27356046,1821.7,1821.3,3.757]
[1746396827042,3.48136046,1821.6,1821.0,10.2523]
[1746396827347,0.27356046,1822.7,1821.4,3.2078]
[1746396827549,1.09728,1822.4,1822.1,4.30524]
[1746396827756,1.6817,1822.3,1822.1,4.30524]
[1746396827955,0.69331529,1822.6,1822.1,3.2078]
[1746396828150,2.33471529,1822.5,1822.2,3.3692]
[1746396828355,1.0973,1822.4,1822.2,3.3692]
[1746396828655,1.6414,1822.3,1822.2,2.7914]
[1746396828855,1.6414,1822.3,1822.2,4.4666]
[1746396829354,0.27356046,1822.2,1821.8,3.2078]
[1746396829551,1.6414,1822.1,1821.7,1.09765]
[1746396829756,2.73889,1822.1,1821.8,1.09764]
[1746396830052,2.73891,1822.1,1821.8,1.09764]
[1746396830255,1.09753,1822.0,1821.6,0.8362]
[1746396830448,1.6414,1821.9,1821.7,1.6752]
[1746396831050,1.6414,1821.9,1821.8,1.09765]
[1746396832053,5.11569,1822.4,1822.1,1.09742]
[1746396832257,1.6048,1822.2,1822.0,1.0975]
[1746396832455,1.6048,1822.2,1822.1,1.09746]
[1746396833155,1.6048,1822.2,1822.1,4.30526]
[1746396833458,1.6048,1822.4,1822.3,1.09732]
[1746396834254,1.6048,1822.4,1822.3,4.30512]
[1746396834650,1.6048,1822.4,1822.3,1.09732]
[1746396834849,1.6048,1822.4,1822.1,3.2078]
[1746396835053,3.53774,1822.4,1822.1,1.09745]
[1746396835354,1.5168056,1822.3,1822.1,1.09745]
[1746396835655,1.6834,1822.2,1822.1,1.09741]
[1746396836358,2.10358444,1822.2,1822.0,4.85648]
[1746396836560,1.09748,1822.1,1821.9,1.09755]
[1746396836757,2.78093,1822.0,1821.8,1.0976]
[1746396836956,0.42018444,1821.9,1821.8,1.0976]
[1746396837158,2.03468444,1821.9,1821.8,1.0976]
[1746396837853,2.03468444,1821.9,1821.7,3.2078]
[1746396838257,1.6145,1821.9,1821.8,1.09765]
[1746396838864,2.71211,1821.9,1821.7,1.09767]
[1746396839161,1.6145,1821.9,1821.6,1.7]
[1746396839363,0.42033378,1821.8,1821.7,1.09765]
[1746396839960,3.48136046,1822.1,1822.0,1.09753]
[1746396840155,4.8855,1822.1,1822.0,1.09753]
[1746396840360,2.09797368,1822.1,1822.0,1.09753]
[1746396840771,1.6777,1822.1,1822.0,1.09753]
[1746396841365,0.27356046,1822.4,1822.0,1.6545]
[1746396841662,1.6777,1822.3,1822.2,1.0974]
[1746396842265,0.27356046,1822.4,1822.3,1.09734]
[1746396842463,1.95126046,1822.4,1822.3,1.09734]
[1746396842659,1.6777,1822.4,1822.3,1.09734]
[1746396842964,2.09750516,1822.4,1822.3,1.09734]
[1746396844152,5.57886562,1822.4,1822.2,1.09738]
[1746396844357,0.27356046,1822.4,1822.3,1.09734]
[1746396844566,0.8246,1822.7,1822.3,3.2078]
[1746396844759,3.48136046,1822.8,1822.7,1.0971]
[1746396845358,0.69379712,1822.8,1822.7,1.0971]
[1746396846164,0.42023666,1822.8,1822.7,1.0971]
[1746396846561,0.42023666,1822.8,1822.7,4.3049]
[1746396846769,1.06296046,1823.1,1823.0,1.09692]
[1746396846965,3.48136046,1823.2,1823.1,1.09686]
[1746396847262,3.48136046,1823.2,1822.8,1.89733]
[1746396847263,3.90129883,1823.2,1822.8,1.89733]
[1746396847464,1.097,1822.9,1822.7,1.09708]
[1746396847662,0.41993837,1822.8,1822.7,1.09708]
[1746396848060,0.41993837,1822.8,1822.7,2.79058]
[1746396848255,0.41993837,1822.9,1822.8,1.09704]
[1746396848558,3.56623285,1823.4,1823.3,1.09674]
[1746396849365,3.56623285,1823.4,1823.3,9.30454]
[1746396849564,3.56623285,1823.4,1823.3,4.30454]
[1746396849758,3.56623285,1823.4,1823.3,8.06354]
[1746396849955,2.23595285,1823.4,1823.3,13.06354]
[1746396850159,7.20753807,1823.6,1823.4,1.09668]
[1746396850462,0.27356046,1824.0,1823.4,3.2107]
[1746396850662,0.27356046,1824.1,1823.9,1.09638]
[1746396851169,0.27356046,1824.1,1823.9,1.09636]
[1746396851370,1.36983046,1824.1,1823.8,1.09641]
[1746396851663,0.27356046,1824.1,1823.7,1.5842]
[1746396851870,1.09634,1824.0,1823.7,1.09645]
[1746396852171,0.27356046,1823.8,1823.5,3.2078]
[1746396852370,0.27356046,1823.6,1823.2,3.758]
[1746396852568,0.27356046,1823.6,1823.2,6.9658]
[1746396852757,3.48136046,1823.8,1823.6,1.09656]
[1746396852963,0.27356046,1823.9,1823.7,1.0965]
[1746396853163,0.27356046,1823.9,1823.6,1.09652]
[1746396853372,1.37000046,1823.9,1823.3,0.8121]
[1746396853671,0.27356046,1823.9,1823.7,1.09649]
[1746396853864,0.27356046,1823.9,1823.4,3.2078]
[1746396854060,0.27356046,1823.9,1823.8,1.09644]
[1746396854669,3.2078,1824.0,1823.9,1.09638]
[1746396854871,0.27356046,1824.2,1824.0,1.09632]
[1746396855172,1.36977046,1824.2,1823.9,1.09634]
[1746396855471,1.14076046,1824.2,1824.0,1.09628]
[1746396855773,2.23696046,1824.2,1824.0,1.09628]
[1746396856071,1.14076046,1824.2,1823.7,1.5842]
[1746396856267,1.14076046,1824.2,1824.0,1.09629]
[1746396856577,1.14076046,1824.2,1823.8,4.033]
[1746396856873,1.14076046,1824.2,1823.8,0.8252]
[1746396857263,1.14076046,1824.2,1824.1,1.09626]
[1746396857463,3.48136046,1824.3,1824.1,1.09622]
[1746396857664,4.57752046,1824.3,1824.1,1.09622]
[1746396857865,3.48136046,1824.3,1824.1,1.09622]
[1746396858868,3.48136046,1824.3,1824.2,1.0962]
[1746396859169,3.48136046,1824.3,1824.1,1.09623]
[1746396859369,1.0962,1824.2,1823.8,0.8252]
[1746396859570,1.36983046,1824.1,1823.9,1.09638]
[1746396860173,1.09633,1824.0,1823.8,1.0964]
[1746396860375,3.85999046,1824.0,1823.7,1.09645]
[1746396860572,4.69429046,1824.0,1823.8,1.09642]
[1746396860773,4.42073,1824.0,1823.8,1.09642]
[1746396861177,4.69429046,1824.0,1823.8,1.09642]
[1746396861472,4.69429046,1824.0,1823.7,1.09646]
[1746396861679,0.27356046,1823.8,1823.6,1.09653]
[1746396861865,1.5655,1823.7,1823.6,1.09653]
[1746396864975,1.83906046,1823.7,1823.3,4.0406]
[1746396865179,0.27356046,1823.5,1823.0,6.5863]
[1746396865473,0.27356046,1823.3,1823.2,1.0968]
[1746396865868,1.99066046,1823.3,1823.2,1.0968]
[1746396866275,1.7171,1823.3,1823.2,1.0968]
[1746396867881,1.99066046,1823.3,1823.2,1.0968]
[1746396868877,1.99066046,1823.3,1823.1,1.09684]
[1746396869280,1.99066046,1823.3,1823.0,3.2078]
[1746396869477,1.99066046,1823.3,1823.2,1.0968]
[1746396870481,1.99066046,1823.3,1823.1,1.09682]
[1746396870684,1.99066046,1823.3,1823.2,1.0968]
[1746396871678,1.99066046,1823.3,1823.1,1.09682]
[1746396871878,1.99066046,1823.3,1823.2,1.0968]
[1746396872982,3.08740046,1823.3,1823.1,1.09682]
[1746396873281,1.99066046,1823.3,1823.2,1.0968]
[1746396873976,0.27356046,1823.2,1823.1,1.09686]
[1746396874178,4.0526,1823.2,1823.1,1.09686]
[1746396874385,1.7324,1823.2,1823.1,1.09686]
[1746396875380,4.9402,1823.2,1823.1,1.09686]
[1746396875784,1.7324,1823.2,1823.1,1.09686]
[1746396894495,3.2078,1823.5,1823.4,1.09668]
[1746396895385,3.48136046,1823.5,1823.3,1.0967]
[1746396895586,1.5746,1823.4,1823.3,1.09674]
[1746396895894,1.84816046,1823.4,1823.2,1.09675]
[1746396896090,4.54027046,1823.4,1823.2,1.09679]
[1746396896292,3.44356046,1823.4,1823.2,1.09679]
[1746396896591,1.5746,1823.3,1823.2,1.09679]
[1746396900290,1.84816046,1823.3,1822.9,3.2078]
[1746396900496,0.27356046,1823.1,1822.9,3.2078]
[1746396900694,4.45632,1823.0,1822.9,3.2078]
[1746396900898,1.09699,1822.9,1822.7,1.09706]
[1746396901095,1.37063046,1822.8,1822.6,1.09712]
[1746396901393,1.5818,1822.7,1822.6,1.09712]
[1746396902998,5.15796046,1823.0,1822.9,1.09698]
[1746396903199,1.95016046,1823.0,1822.9,1.09698]
[1746396903596,3.2078,1823.2,1823.1,1.09686]
[1746396904500,1.7069,1823.2,1823.1,4.30466]
[1746396905497,1.7069,1823.2,1823.1,1.09686]
[1746396905694,1.7069,1823.2,1823.1,4.30466]
[1746396906497,11.50907922,1823.4,1823.0,1.6326]
[1746396906801,1.7069,1823.5,1823.4,1.09668]
[1746396907001,1.08896046,1823.6,1823.5,1.09662]
[1746396907696,0.8154,1823.6,1823.5,1.09662]
[1746396907996,9.0318,1823.8,1823.7,1.0965]
[1746396907997,5.824,1823.8,1823.7,1.0965]
[1746396908205,5.68507922,1823.9,1823.8,1.09644]
[1746396908206,5.41151876,1823.9,1823.8,1.09644]
[1746396908404,5.41151876,1823.9,1823.8,4.30424]
[1746396908800,5.41151876,1823.9,1823.8,5.99254]
[1746396910007,1.09614,1824.3,1823.8,4.8961]
[1746396910208,0.27356046,1824.2,1823.8,4.8961]
[1746396910405,4.34276046,1824.2,1823.8,1.0964]
[1746396910707,1.09641,1823.9,1823.6,1.09653]
[1746396910909,0.8614,1823.8,1823.6,1.09653]
[1746396911204,0.27356046,1823.7,1823.5,3.809]
[1746396911508,1.12806046,1823.7,1823.6,1.09656]
[1746396912009,1.12806046,1823.7,1823.5,4.90558]
[1746396912202,1.12806046,1823.7,1823.6,1.09656]
[1746396913209,3.2078,1823.8,1823.7,1.0965]
[1746396913509,6.09756046,1824.1,1824.0,1.09632]
[1746396913707,0.27356046,1824.2,1824.1,1.09626]
[1746396913899,5.68507922,1824.3,1823.8,3.2078]
[1746396914099,5.68507922,1824.3,1823.8,7.68632]
[1746396914299,5.68507922,1824.3,1824.2,1.0962]
[1746396914503,5.68507922,1824.3,1824.1,1.09622]
[1746396914808,5.68507922,1824.3,1824.2,1.0962]
[1746396915109,5.68507922,1824.3,1823.9,1.7375]
[1746396915308,6.78123922,1824.3,1824.0,1.09627]
[1746396915505,1.09626,1824.1,1823.8,4.30423]
[1746396915814,1.36994046,1823.9,1823.8,3.2078]
[1746396916011,0.27356046,1823.7,1823.4,3.808]
[1746396916216,1.36997046,1823.9,1823.6,1.09653]
[1746396916414,0.27356046,1823.9,1823.7,1.0965]
[1746396916615,1.36994046,1823.9,1823.6,1.09652]
[1746396916812,0.27356046,1823.9,1823.4,19.58733281]
[1746396917012,1.36995046,1823.9,1823.6,1.09652]
[1746396917621,1.36994046,1823.9,1823.7,1.09649]
[1746396917818,0.27356046,1823.9,1823.6,1.09652]
[1746396918123,1.09647,1823.8,1823.5,1.0966]
[1746396918521,1.36998046,1823.9,1823.6,1.09655]
[1746396918818,1.36998046,1823.9,1823.6,1.09653]
[1746396919516,1.09644,1823.8,1823.6,1.09653]
[1746396919725,1.36997046,1823.9,1823.6,1.09653]
[1746396919919,1.37001046,1823.8,1823.5,1.09661]
[1746396920321,1.37001046,1823.8,1823.6,1.09656]
[1746396920619,1.7328,1823.7,1823.6,1.09656]
[1746396920821,3.10288046,1823.7,1823.4,3.808]
[1746396921023,1.09656,1823.6,1823.4,3.808]
[1746396921215,1.37018046,1823.5,1823.2,5.88356]
[1746396921417,1.7328,1823.4,1823.3,1.09674]
[1746396921722,1.7328,1823.4,1823.2,4.7868]
[1746396921723,1.7328,1823.4,1823.2,5.88356]
[1746396922224,1.7328,1823.4,1823.3,1.09674]
[1746396923307,1.37002046,1823.8,1823.3,6.6944]
[1746396923513,9.0318,1823.9,1823.4,11.43291]
[1746396923713,9.0318,1823.9,1823.7,1.09645]
[1746396923914,9.0318,1823.9,1823.8,1.09644]
[1746396924119,3.2078,1823.9,1823.8,1.09644]
[1746396924526,4.8773,1823.9,1823.7,1.89806]
[1746396924709,1.6695,1823.8,1823.7,1.89806]
[1746396925316,1.6695,1823.8,1823.7,2.496]
[1746396925516,1.6695,1823.8,1823.7,3.5925]
[1746396927823,3.2078,1823.9,1823.7,11.285]
[1746396928024,1.84436046,1824.4,1824.3,1.09614]
[1746396928219,1.36966046,1824.4,1824.1,8.09304]
[1746396928425,1.36976046,1824.3,1824.1,3.789]
[1746396928618,2.18626046,1824.3,1824.1,3.789]
[1746396929129,0.27356046,1824.1,1824.0,0.8313]
[1746396929324,0.8081,1824.2,1824.0,0.8313]
[1746396929517,1.08166046,1824.2,1824.0,1.92759]
[1746396929822,0.8081,1824.2,1824.0,1.92759]
[1746396930024,1.08166046,1824.2,1824.0,1.92759]
[1746396930219,1.08166046,1824.2,1824.0,0.8313]
[1746396930425,0.27356046,1824.1,1823.8,9.686]
[1746396930732,9.30536046,1824.5,1824.0,5.94851]
[1746396931026,7.31927922,1824.6,1824.5,1.09602]
[1746396931428,1.90776046,1824.6,1824.5,1.09602]
[1746396932827,1.90776046,1824.6,1824.4,1.09605]
[1746396933226,1.90776046,1824.6,1824.3,1.7073]
[1746396934127,1.90776046,1824.6,1824.4,1.09602]
[1746396934518,5.41151876,1824.9,1824.8,1.09584]
[1746396934826,5.68507922,1824.9,1824.5,3.2078]
[1746396935126,0.27356046,1824.7,1824.5,1.096]
[1746396935324,1.09591,1824.7,1824.5,1.096]
[1746396935524,2.97504046,1824.8,1824.5,1.096]
[1746396935830,0.27356046,1824.7,1824.4,3.788]
[1746396936031,1.096,1824.6,1824.3,1.09612]
[1746396936230,1.36960046,1824.5,1824.2,4.88418]
[1746396936423,1.09605,1824.5,1824.2,4.88418]
[1746396936626,1.6237,1824.4,1824.2,4.88418]
[1746396936828,1.6237,1824.4,1824.3,1.09614]
[1746396937021,1.6237,1824.4,1824.2,3.788]
[1746396937229,1.09616,1824.3,1824.0,1.09632]
[1746396937430,1.89726046,1824.4,1823.9,55.045]
[1746396937431,6.20118046,1824.4,1824.1,1.09623]
[1746396938034,1.09615,1824.3,1824.1,1.09623]
[1746396938239,6.20117046,1824.4,1824.1,1.09623]
[1746396938823,5.92761,1824.4,1824.2,1.0962]
[1746396939131,1.89726046,1824.4,1824.3,1.09614]
[1746396939431,1.6237,1824.4,1824.3,1.09614]
[1746396939630,1.89726046,1824.4,1824.3,1.09614]
[1746396939831,1.6237,1824.4,1824.3,1.09614]
[1746396940537,3.3478,1824.4,1824.3,1.09614]
[1746396940833,3.48136046,1824.7,1824.6,1.09596]
[1746396941039,3.05576046,1824.6,1824.3,1.89522]
[1746396941242,1.6862,1824.5,1824.4,1.09608]
[1746396942239,1.6862,1824.5,1824.3,1.89521]
[1746396942429,3.05579046,1824.5,1824.3,1.89521]
[1746396942737,1.95976046,1824.5,1824.3,1.89523]
[1746396942937,1.6862,1824.4,1824.3,1.89523]
[1746396945843,1.95976046,1824.4,1824.2,8.90777]
[1746396946036,1.6862,1824.4,1824.2,7.8116]
[1746396946241,1.6862,1824.4,1824.2,5.69996]
[1746396946436,2.78229,1824.4,1824.2,5.69996]
[1746396946738,1.7268,1824.3,1824.2,4.6038]
[1746396947040,1.7268,1824.3,1824.1,1.91835]
[1746396947243,1.7268,1824.3,1824.1,1.91831]
[1746396947451,2.82294,1824.3,1824.1,1.91831]
[1746396947744,1.7268,1824.3,1824.2,1.0962]
[1746396947942,0.27356046,1824.4,1824.2,1.0962]
[1746396948943,1.36964046,1824.4,1824.1,1.91834]
[1746396949143,1.36964046,1824.4,1824.1,5.12614]
[1746396949445,1.36964046,1824.4,1824.2,1.0962]
[1746396949633,0.27356046,1824.4,1824.2,1.0962]
[1746396949841,1.36966046,1824.4,1824.2,1.0962]
[1746396950039,1.36965046,1824.4,1824.2,1.09618]
[1746396950339,1.36965046,1824.4,1824.1,0.8221]
[1746396950340,0.27356046,1824.4,1824.1,0.8221]
[1746396950542,1.36966046,1824.4,1824.1,0.8221]
[1746396950738,1.0961,1824.4,1824.1,0.8221]
[1746396950938,1.0961,1824.4,1824.2,1.0962]
[1746396951942,1.36966046,1824.4,1824.2,1.0962]
[1746396952242,10.40141046,1824.5,1824.3,1.09612]
[1746396952443,0.27356046,1824.3,1824.2,1.09617]
[1746396952743,1.36967046,1824.4,1824.2,1.09617]
[1746396953343,0.27356046,1824.4,1824.2,1.09617]
[1746396954044,1.36966046,1824.4,1824.2,1.09617]
[1746396954344,10.40141046,1824.5,1824.2,1.09616]
[1746396954544,1.09609,1824.4,1824.2,1.09616]
[1746396954939,9.30536046,1824.5,1824.4,1.09608]
[1746396955252,9.30536046,1824.5,1824.3,1.0961]
[1746396955545,10.40138046,1824.5,1824.3,1.0961]
[1746396958250,1.36958046,1824.5,1824.3,1.0961]
[1746396959449,0.27356046,1824.5,1824.3,1.0961]
[1746396959648,1.36962046,1824.5,1824.3,1.0961]
[1746396960952,0.27356046,1824.5,1824.2,0.822]
[1746396961139,1.5742,1824.4,1824.3,1.09609]
[1746396961342,1.84776046,1824.4,1824.3,1.09609]
[1746396962749,1.84776046,1824.4,1824.1,0.8221]
[1746396962950,1.09616,1824.3,1824.1,1.91834]
[1746396963154,1.6788,1824.2,1824.1,1.91834]
[1746396964569,1.95236046,1824.2,1824.1,0.8221]
[1746396964743,1.95236046,1824.2,1824.1,1.91836]
[1746396964947,1.6788,1824.2,1824.1,1.91836]
[1746396965859,3.2078,1824.5,1824.2,2.74051]
[1746396966153,3.2078,1824.8,1824.7,1.0959]
[1746396966353,1.7126,1824.8,1824.7,4.3037]
[1746396967349,5.41151876,1824.9,1824.8,1.09584]
[1746396967553,7.12411876,1824.9,1824.8,1.09584]
[1746396967955,1.7126,1824.9,1824.8,2.81524]
[1746396972154,1.98616046,1824.9,1824.7,1.09587]
[1746396972459,1.98616046,1824.9,1824.8,1.09584]
[1746396972651,1.98616046,1824.9,1824.7,1.6538]
[1746396972853,1.7126,1824.9,1824.7,1.6538]
[1746396973048,0.27356046,1825.2,1825.1,1.09566]
[1746396973356,1.7089,1825.2,1825.1,1.09566]
[1746396973551,3.61075878,1825.3,1825.2,1.0956]
[1746396973755,3.61075878,1825.3,1825.2,3.5435]
[1746396975758,3.88431924,1825.3,1825.2,1.8897]
[1746396975966,2.00056046,1825.3,1825.2,1.8897]
[1746396976158,2.00056046,1825.3,1825.0,3.54581]
[1746396976469,0.27356046,1825.2,1825.0,2.72451]
[1746396976765,2.00056046,1825.1,1824.7,3.2078]
[1746396976960,1.09579,1824.9,1824.7,6.4514]
[1746396977163,1.727,1824.8,1824.7,4.3395]
[1746396977467,0.27356046,1825.1,1824.7,3.2436]
[1746396977765,1.91456046,1825.1,1824.9,4.30354]
[1746396977958,1.91456046,1825.1,1824.9,1.09574]
[1746396978159,3.01022046,1825.1,1824.9,1.09574]
[1746396978371,1.91456046,1825.1,1824.9,1.09574]
[1746396979365,1.91456046,1825.1,1825.0,1.09572]
[1746396979572,1.641,1825.1,1825.0,1.09572]
[1746396980160,1.641,1825.1,1825.0,2.76402]
[1746396981969,0.27912061,1825.3,1825.2,1.0956]
[1746396982365,0.27912061,1825.3,1825.1,0.8128]
[1746396982667,0.27356046,1825.1,1824.8,4.86082]
[1746396982868,3.3151,1825.0,1824.8,3.765]
[1746396983063,3.3151,1825.0,1824.8,4.86084]
[1746396983064,1.6914,1824.9,1824.8,4.86084]
[1746396983469,1.6914,1824.9,1824.8,6.50724]
[1746396984372,0.27356046,1825.1,1825.0,1.09572]
[1746396984670,0.27356046,1824.9,1824.8,3.765]
[1746396984861,0.27356046,1824.9,1824.8,4.86084]
[1746396985058,0.27356046,1825.0,1824.8,4.86084]
[1746396985263,1.6211,1824.9,1824.8,4.86084]
[1746396986471,1.89466046,1824.9,1824.8,3.765]
[1746396986868,2.99044046,1824.9,1824.8,3.765]
[1746396987073,1.6211,1824.9,1824.8,4.86084]
[1746396987568,1.6211,1824.9,1824.8,6.55684]
[1746396988874,1.89466046,1824.9,1824.8,6.55684]
[1746396989172,1.89466046,1824.9,1824.8,3.765]
[1746396989675,1.6211,1824.9,1824.8,4.86084]
[1746396989875,2.99044046,1824.9,1824.8,3.765]
[1746396990069,1.89466046,1824.9,1824.8,3.765]
[1746396990266,1.89466046,1824.9,1824.8,4.86084]
[1746396990471,1.89466046,1824.9,1824.8,3.765]
[1746396990773,2.99044046,1824.9,1824.8,3.765]